Cogmind - Beta 16 @@@ ROGUE MODE // 2025.11.14 @ 06:21:47 // AFD2019/Pay2Buy Player: GFYguy Result: Self-destructed Performance ------------- Evolutions (1) 500 Regions Visited (2) 400 Robots Destroyed (0) 0 Value Destroyed (120) 120 Prototype IDs (1) 20 Alien Tech Used (0) 0 Bonus (200) 200 TOTAL SCORE: 1240 Bonus ------- Pacifist 200 Cogmind --------- Core Integrity 353/400 Matter 131/300 Energy 97/160 System Corruption 0% Temperature Cool (2) Movement Hovering (46) Location -9/Materials Parts ------- > --- POWER (1) -------- Light Nuclear Core > --- PROPULSION (3) --- Aerolev Unit Aerolev Unit > --- UTILITY (3) ------ Sensor Array ECM Suite > --- WEAPON (2) ------- Plasma Cutter > --- INVENTORY (10) --- (None) Peak State ------------ > --- POWER ------------ Light Nuclear Core > --- PROPULSION ------- Aerolev Unit Aerolev Unit > --- UTILITY ---------- Sensor Array ECM Suite Reaction Control System > --- WEAPON ----------- Plasma Cutter Hammer > --- INVENTORY -------- (None) [Rating: 19] Favorites ----------- Power Light Nuclear Core Power Core Light Nuclear Core Propulsion Aerolev Unit Hover Unit Aerolev Unit Utility Sensor Array Device Sensor Array Weapon Hammer Special Weapon Plasma Cutter Impact Weapon Hammer Build | -11 -10 -9 ------- Run | Yrd Mat Mat Slots Evolved 2 | . . 2 Power . | . . . Propulsion 1 | . . 1 Utility 1 | . . 1 Weapon . | . . . Parts Attached 4 | . . 4 Power . | . . . Engine . | . . . Core . | . . . Reactor . | . . . Propulsion 1 | . . 1 Treads . | . . . Leg . | . . . Wheel . | . . . Hover 1 | . . 1 Flight . | . . . Utility 1 | . . 1 Device 1 | . . 1 Storage . | . . . Processor . | . . . Hackware . | . . . Protection . | . . . Artifact . | . . . Weapon 2 | . . 2 Energy Gun . | . . . Energy Cannon . | . . . Ballistic Gun . | . . . Ballistic Cannon . | . . . Launcher . | . . . Special Weapon 1 | . . 1 Impact Weapon 1 | . . 1 Slashing Weapon . | . . . Piercing Weapon . | . . . Special Melee Weapon . | . . . Unidentified Prototypes . | . . . Parts Lost 1 | . 1 . Power . | . . . Propulsion . | . . . Utility . | . . . Weapon 1 | . 1 . Highest Loss Streak 1 | . 1 . To Critical Strikes . | . . . Average Backups . | . . . Power . | . . . Propulsion . | . . . Utility . | . . . Weapon . | . . . Tool/Special . | . . . Unused Backups . | . . . Power . | . . . Propulsion . | . . . Utility . | . . . Weapon . | . . . Tool/Special . | . . . Average Slot Usage (%) 29 | . 26 33 Device 2 | . . 8 Special Weapon 11 | . 12 10 Impact Weapon 12 | . 14 10 Peak Build Rating 19 | 3 3 19 Average Rating 3 | 3 2 4 On Entrance 2 | . 3 3 Avg Prop Armor Cover (%) . | . . . Naked Turns . | . . . Heaviest Build 12 | 3 3 12 Greatest Support 16 | 3 3 16 Greatest Overweight (x) 1 | . . 1 Average Overweight (x) . | . . . Largest Inventory Capacity 10 | 10 10 10 Average Capacity 10 | 10 10 10 Most Carried 3 | . 1 3 Average Carried . | . . . Final Capacity 10 | 10 10 10 Final Carried 1 | . 1 . Class Distribution -------------------- 100% | Mutant Dominant Class ---------------- Mutant | -10/Materials Mutant | -9/Materials Resources | -11 -10 -9 ----------- Run | Yrd Mat Mat Matter Collected 66 | . 66 . Remotely . | . . . Salvage Created 16 | . 16 . Parts . | . . . Haulers Intercepted . | . . . Recyclers Shooed . | . . . Parts Field Recycled . | . . . Retrieved Matter . | . . . Parts Self-Destructed . | . . . Prevented . | . . . Parts Restored . | . . . Kills | -11 -10 -9 ------- Run | Yrd Mat Mat Combat Hostiles Destroyed . | . . . Classes Destroyed . | . . . Best Kill Streak . | . . . Combat Bots Only . | . . . Max Kills in Single Turn . | . . . Gunslinging . | . . . Exploded . | . . . Melee . | . . . Uniques/NPCs Destroyed . | . . . Combat | -11 -10 -9 -------- Run | Yrd Mat Mat Hostile Shots Fired 25 | . 13 12 Missed 10 | . 4 6 Hits 15 | . 9 6 Projectile 15 | . 9 6 Critical Strikes 1 | . 1 . Damage Taken 219 | . 131 88 Core 130 | . 83 47 Absorbed by Shields . | . . . Core Remaining (%) 83 | 100 66 . Volleys Fired 1 | . . 1 Largest 1 | . . 1 Hottest 20 | . . 20 Shots Fired 1 | . . 1 Gun . | . . . Cannon . | . . . Launcher . | . . . Special 1 | . . 1 Kinetic . | . . . Thermal 1 | . . 1 Explosive . | . . . Electromagnetic . | . . . Robot Hit Streak 1 | . . 1 Robot Miss Streak . | . . . Penetration Max . | . . . Secondary Targets . | . . . Shots Hit Robots 1 | . . 1 Core Hits . | . . . Critical Kills . | . . . Critical Parts Destroyed . | . . . Critical Strikes . | . . . Melee Attacks 1 | . . 1 Impact 1 | . . 1 Slashing . | . . . Piercing . | . . . Sneak Attacks . | . . . Combat Hostiles . | . . . Follow-up Attacks . | . . . Damage Inflicted 12 | . . 12 Guns . | . . . Cannons . | . . . Explosions . | . . . Melee . | . . . Ramming . | . . . Kinetic . | . . . Thermal 12 | . . 12 Explosive . | . . . Electromagnetic . | . . . Impact . | . . . Slashing . | . . . Piercing . | . . . Highest Corruption . | . . . Average Corruption . | . . . Corruption Purged . | . . . Corruption Blocked . | . . . Overload Shots . | . . . Overflow Damage . | . . . Projectiles . | . . . Explosions . | . . . Melee . | . . . Knockbacks . | . . . Impact . | . . . Kinetic . | . . . Secondary . | . . . Self-Inflicted Damage . | . . . Shots . | . . . Rammed . | . . . Targets Rammed . | . . . Kicked . | . . . Crushed . | . . . Highest Temperature 2 | . 2 . Average Temperature 2 | . 2 . Received Heat Transfer 120 | . 93 27 Siege Activations . | . . . Martial Activations . | . . . Shielding Activations . | . . . Robots Disrupted . | . . . Combat Hostiles . | . . . Robots Corrupted . | . . . Combat Hostiles . | . . . Parts Fried . | . . . Impact Corruptions . | . . . Robots Melted . | . . . Combat Hostiles . | . . . Parts Melted . | . . . Heat Transferred 37 | . . 37 Parts Sabotaged . | . . . Parts Stolen . | . . . Parts Stripped . | . . . Power Chain Reactions . | . . . Alert | -11 -10 -9 ------- Run | Yrd Mat Mat Maximum Alert Level . | . . . Low Security (%) 100 | 100 100 100 Level 1 . | . . . Level 2 . | . . . Level 3 . | . . . Level 4 . | . . . Level 5 . | . . . High Security . | . . . Max Security . | . . . Peak Influence 60 | . 60 51 Initial 31 | . . 31 Average 26 | . 21 37 Influence Increases 240 | . 195 45 Disable Machine 180 | . 135 45 Lose Combat Pursuer 60 | . 60 . Influence Decreases 214 | . 120 94 Entered New Map 44 | . . 44 Time Decay 160 | . 110 50 Lost Part 10 | . 10 . Squads Dispatched 1 | . 1 . Investigation . | . . . Extermination . | . . . Reinforcement 1 | . 1 . Assault . | . . . Garrison . | . . . Intercept . | . . . Searches Triggered . | . . . Construction Impeded . | . . . Haulers Reinforced . | . . . Active Scanning Responses . | . . . Cargo Convoy Interrupts . | . . . Stealth | -11 -10 -9 --------- Run | Yrd Mat Mat Distress Signals . | . . . Communications Jammed . | . . . Distress Signals . | . . . Times Spotted 13 | . 9 4 Peak Tracking Total 4 | . 3 4 Tactical Retreats 2 | . 2 . Traps | -11 -10 -9 ------- Run | Yrd Mat Mat Traps Triggered 2 | . . 2 Indirectly . | . . . Trap Hack Attempts . | . . . Triggered . | . . . Disarmed . | . . . Reprogrammed . | . . . Reused . | . . . Traps Extracted . | . . . Installed . | . . . Triggered . | . . . Machines | -11 -10 -9 ---------- Run | Yrd Mat Mat Machines Disabled 13 | . 10 3 Max in Single Turn 1 | . 1 1 Machines Repaired . | . . . Machines Dismantled 13 | . 10 3 Machines Sabotaged . | . . . Overloaded Fab Kills . | . . . Hacking | -11 -10 -9 --------- Run | Yrd Mat Mat Machines Accessed 1 | . 1 . Terminals 1 | . 1 . Fabricators . | . . . Repair Stations . | . . . Recycling Units . | . . . Scanalyzers . | . . . Garrison Access . | . . . Total Hacks 3 | . 3 . Successful . | . . . Failed 3 | . 3 . Catastrophic 1 | . 1 . Database Lockouts . | . . . Manual . | . . . Terminals 3 | . 3 . Fabricators . | . . . Repair Stations . | . . . Recycling Units . | . . . Scanalyzers . | . . . Garrison Access . | . . . Terminal Hacks . | . . . Fabricator Hacks . | . . . Repair Station Hacks . | . . . Recycling Unit Hacks . | . . . Scanalyzer . | . . . Garrison Access Hacks . | . . . Unauthorized Hacks . | . . . Terminals . | . . . Fabricators . | . . . Repair Stations . | . . . Recycling Units . | . . . Scanalyzers . | . . . Garrison Access . | . . . Data Cores Recovered . | . . . Used . | . . . Hacking Detections 1 | . 1 . Full Trace Events . | . . . Feedback Events . | . . . Feedback Blocked . | . . . Robot Schematics Acquired . | . . . Robots Built . | . . . Authchips . | . . . Time . | . . . Total Robot Build Rating . | . . . Part Schematics Acquired . | . . . Parts Built . | . . . Authchips . | . . . Time . | . . . Total Part Build Rating . | . . . Part Studies Acquired . | . . . Parts Repaired . | . . . Time . | . . . Parts Recycled . | . . . Recycled Matter . | . . . Retrieved Matter . | . . . Retrieved Components . | . . . Parts Scanalyzed . | . . . Part Schematics Acquired . | . . . Parts Damaged . | . . . Bothacking | -11 -10 -9 ------------ Run | Yrd Mat Mat Used RIF Installer . | . . . Robots Hacked . | . . . Non-combat . | . . . Combat . | . . . Robot Hacks Applied . | . . . Relay Couplers Released . | . . . Fabnet Peak Effective % . | . . . Robots Rewired . | . . . Allies Hacked . | . . . Hacks Repelled . | . . . Allies | -11 -10 -9 -------- Run | Yrd Mat Mat Total Allies . | . . . Largest Group . | . . . Highest-Rated Group . | . . . Highest-Rated Ally . | . . . Total Orders . | . . . Ally Attacks . | . . . Total Damage . | . . . Kills . | . . . Allies Corrupted . | . . . Allies Melted . | . . . Intel | -11 -10 -9 ------- Run | Yrd Mat Mat Active Infowar (turns) 59 | . . 59 Sensors 59 | . . 59 ECM 14 | . . 14 Robot Analysis Total . | . . . Derelict Logs Recovered . | . . . Drone Launches . | . . . Drone Recoveries . | . . . Exploration | -11 -10 -9 ------------- Run | Yrd Mat Mat Turns Passed 359 | 9 238 112 Spaces Moved 381 | 18 264 99 Core 374 | 18 264 92 Treads . | . . . Legs . | . . . Wheels . | . . . Hover 7 | . . 7 Flight . | . . . Fastest Speed 46 | 50 50 46 Average Speed 53 | 50 50 63 Slowest Speed 110 | 50 50 110 Overloaded Moves . | . . . Propulsion Burnouts . | . . . Robots Hopped . | . . . Potential Cave-ins . | . . . Cave-ins Triggered . | . . . Exploration Rate (%) 18 | 3 40 13 Regions Visited 2 Branch Regions . Pre-discovered Areas . | . . . Known Exits Taken . | . . . Unknown Exits Taken 2 | 1 1 . Scrap Searched . | . . . Spaces Dug . | . . . Terrain Destroyed . | . . . Melee . | . . . Projectile . | . . . AOE . | . . . Terrain Rammed . | . . . Walls Destroyed . | . . . Machines Disabled . | . . . Actions | -11 -10 -9 --------- Run | Yrd Mat Mat Total 436 | 17 299 120 Wait . | . . . Move 379 | 17 263 99 Hop . | . . . Pick Up 4 | . 1 3 Fast Attach . | . . . Attach 4 | . . 4 Detach . | . . . Swap . | . . . Drop . | . . . Fire 1 | . . 1 Melee 1 | . . 1 Ram . | . . . Kick . | . . . Crush . | . . . Escape Stasis . | . . . Rewire . | . . . Trap . | . . . Miscellaneous 47 | . 35 12 Route ------- -11/Scrapyard -10/Materials (discovered 3 exits: [*Mat] / [*Min x2]) -9/Materials History --------- Turn | Location | Event 3 | -11/Scrapyard | Discovered new exit (range 14) 10 | -11/Scrapyard | Entered Materials 11 | -10/Materials | Met a group of wandering Federalists 12 | -10/Materials | Discovered new exit (range 14) 163 | -10/Materials | Discovered new exit (range 14) 229 | -10/Materials | Discovered new exit (range 16) 248 | -10/Materials | Entered another Materials area 248 | -9/Materials | Evolved 2 slots: Propulsion x1, Utility x1 322 | -9/Materials | Build established: Mutant 360 | -9/Materials | Self-destructed Last Messages --------------- 00320_ Dismantling Neutrino Reactor with Plasma Cutter. 00329_ Neutrino Reactor dismantled. [Purchased: Aerolev Unit] [Purchased: Lgt. Nuclear Core] [Purchased: Reaction Control System] [Purchased: ECM Suite] 00347_ Triggered Blade Trap. 00347_ Massive razor-sharp blades shoot up from within the floor. 00347_ Plasma Cutter severed. 00347_ Hammer severed. 00347_ Aerolev Unit severed. 00349_ Acquired Aerolev Unit. 00349_ U-05 Engineer lays Concrete. 00351_ Acquired Plasma Cutter. 00353_ Acquired Hammer. 00360_ Triggered Blade Trap. 00360_ Massive razor-sharp blades shoot up from within the floor. 00360_ Reaction Control System severed. 00360_ Hammer severed. 00360_ U-05 Engineer lays Concrete. Map ----- +----------------------------------------------------+ | #???????????????????????????????????????????????? | | #???????????????????????????????????????????????? | | #????????????????##########?????????????????????? | | #????????????????# #?????????????????????? | | ###############???# #?????????????????????? | | + ##### #?????????????????????? | | ##### # # #?????????????????????? | | ????# """ """ # # #?????????????????????? | | ????# "" "" # # #?????????????????????? | | ????# " " + + #?????????????????????? | | ????# "" "" # # #?????????????????????? | | ????# """ """ # # #?????????????????????? | | ????# # ##########?????????????????????? | | ????########### # #???????????????????????? | | ??????????????# # #???????????????????????? | | ??????????????# # "" #???????????????????????? | | ??????????????# " " #???????????????????????? | | ??????????????# # "" #???????????????????????? | | ??????????????# # #???????????????????????? | | ?????????????## ########???????????????????????? | | ??????######## #?????????????????????????????? | | ????? "" #############+### "??????????? | | ??? T u """ ""?????????? | | ????? #### "T" m ????????? | | ?????#####+### #??# u ????????? | | ?????????????#######??# @/ ????????? | | ??????????????????????# """ ###?????????????? | | ??????????????????????# u""" """?????????????? | | ??????????????????????# """ R"?????????????? | | ??????????????????????# w """?????????????? | | ??????????????????????# ##??????????????? | | ??????????????????????+ #???????????????? | | ??????????????????????# ###+## ????????????????? | | ??????????????????????# #??????????????????????? | | ??????????????????????# #??????????????????????? | | ?????????????????????? #??????????????????????? | | ??????????????????????#####??????????????????????? | | ?????????????????????????????????????????????????? | | ?????????????????????????????????????????????????? | | ?????????????????????????????????????????????????? | | ?????????????????????????????????????????????????? | | ?????????????????????????????????????????????????? | | ?????????????????????????????????????????????????? | | ?????????????????????????????????????????????????? | | ?????????????????????????????????????????????????? | | ?????????????????????????????????????????????????? | | ?????????????????????????????????????????????????? | | ?????????????????????????????????????????????????? | | ?????????????????????????????????????????????????? | | ?????????????????????????????????????????????????? | +----------------------------------------------------+ Best States ------------- Heat Dissipation 28 Energy Generation 14 Energy Capacity 160 Matter Stores 171 Matter Capacity 300 Sight Range 16 Robot Scan Range 14 Terrain Scan Density 10 ECM Strength 1 Evasion (%) 53 Item Schematics ----------------- None Robot Schematics ------------------ None Fabricated ------------ Nothing Repaired ---------- Nothing Studied --------- None Alien Tech Used ----------------- None Achievements -------------- None Challenges ------------ None Cogshop Purchases (8) ----------------------- Plasma Cutter (699) Hammer (539) Plasma Cutter (743) Aerolev Unit (1038) Aerolev Unit (1038) Lgt. Nuclear Core (711) Reaction Control System (798) ECM Suite (598) Game ------ Seed MomentumTrapBotcube Manual? 0 Play Time 00:06:07 Cumulative 41.9 hours Start 2025.11.14 @ 06:17:19 End 2025.11.14 @ 06:21:47 Sessions 1 Manual Loads 0 Difficulty Rogue Special Mode AFD2019/Pay2Buy Game No. 87 Rogue 87 Adventurer 0 Explorer 0 Win Type - Total 0 Types 0/0/0/0/0/0/0/0/0/0 Lore% 15 Gallery% 31 Achievement% 20 Wizard Run 0 Options --------- Layout 0 ASCII 0 Keyboard 0 Movement Mouse Keybinds 0 Fullscreen 2 Font 18/SmallcapsGlow Map View 76x50 Zoom Use 0% Tactical HUD 1 Map Filters NONE Filters NONE Steam 1 RUN: f7089a90-ebfa-46da-8800-12194f18be6e